[Event "Prague Festival Open 2022"]
[Site "Prague"]
[Date "2022.06.13"]
[Round "5.7"]
[White "Malicka, Maria"]
[Black "Sankalp Gupta"]
[Result "1/2-1/2"]
[ECO "B11"]
[WhiteElo "2377"]
[BlackElo "2505"]
[Annotator "TA"]
[PlyCount "217"]
[EventDate "2022.06.10"]
[EventType "swiss"]
[EventCountry "CZE"]
[SourceTitle "playchess.com"]
[Source "ChessBase"]
[SourceQuality "1"]
[TimeControl "40/5400+30:1800+30"]

{[%evp 10,217,14,10,25,25,10,14,40,36,76,61,64,54,58,21,12,0,2,-6,-10,-22,-19,-22,0,-1,9,9,25,29,14,20,77,71,102,78,112,107,133,102,101,84,163,84,84,84,84,83,91,80,79,56,71,43,56,55,56,58,64,0,0,0,0,0,0,0,0,0,0,-37,-37,-37,-37,-37,-37,-39,-39,-41,-45,-264,-242,-225,-226,-242,-224,-392,-385,-374,-254,-229,-237,-261,-260,-233,-212,-149,-126,-126,-126,-126,-125,-115,-8,-8,-8,-8,-8,-8,-8,-8,-8,-8,0,-8,0,0,0,0,0,0,0,0,0,0,0,0,0,0,0,0,0,0,0,0,0,0,0,0,0,0,0,0,0,-8,-8,-8,0,0,0,0,0,0,0,0,0,0,0,0,0,0,0,0,0,0,0,0,0,0,0,0,0,0,0,0,0,0,0,0,0,0,0,0,0,0,0,0,0,0,0,0,0,0,0,-8,0,0,0,0,0,0,0,0,0,0,0,0,0,0,0,0]} 1. e4 {[%emt 0:00:04]} c6 {[%emt 0:02:54]} 2. Nc3 {[%emt 0:00:08]} d5 {[%emt 0:00:06]} 3. Nf3 {[%emt 0:00:04]} Bg4 {[%emt 0:00:57]} 4. h3 {[%emt 0:00:09]} Bxf3 {[%emt 0:00:02]} 5. Qxf3 {[%emt 0:00:03]} e6 {[%emt 0:00:10]} 6. Be2 {[%emt 0:00:03]} Bc5 {[%emt 0:00:43] B11: Caro-Kann: Two Knights Variation.} 7. O-O {[%emt 0:00:12]} Ne7 {[%emt 0:01:02]} 8. Na4 {[%emt 0:00:25] [#]} Bb6 $146 {[%emt 0:08:05]} ({Predecessor:} 8... Bd6 9. d4 dxe4 10. Qxe4 Nd7 11. Rd1 Nf6 12. Qf3 Qa5 13. b3 e5 14. dxe5 Bxe5 {½-½ (41) Vachier Lagrave,M (2760)-Svidler,P (2714) chess24.com INT 2021}) 9. Nxb6 {[%emt 0:01:28]} Qxb6 {[%emt 0:00:26]} 10. exd5 {[%emt 0:17:39]} cxd5 {[%emt 0:00:31]} 11. c3 {[%emt 0:00:16]} d4 {[%emt 0:04:05]} 12. b3 {[%emt 0:07:38]} O-O {[%emt 0:03:45]} 13. Bb2 {[%emt 0:04:16]} Rd8 {[%emt 0:02:40]} 14. cxd4 {[%emt 0:09:58]} Nbc6 {[%emt 0:00:23]} 15. Bd3 {[%emt 0:07:17]} Nxd4 {[%emt 0:06:36]} 16. Qe4 {[%emt 0:00:51]} ({Don't blunder} 16. Bxh7+ $2 Kxh7 17. Qxf7 Ng6 $19) 16... f5 {[%emt 0:09:35]} 17. Qe3 {[%emt 0:01:30]} Nec6 {[%emt 0:02:09]} 18. Bc4 {[%emt 0:03:46]} Kh8 {[%emt 0:00:30]} 19. Rac1 {[%emt 0:05:11]} e5 {[%emt 0:00:13]} 20. f4 {[%emt 0:04:11]} e4 {[%emt 0:11:27]} (20... Ne2+ $11 {keeps the balance.} 21. Bxe2 Rxd2 22. Qxb6 axb6) 21. Kh1 $1 $16 {[%emt 0:00:11]} Qa5 {[%emt 0:12:13]} 22. a3 {[%emt 0:06:40]} Rd7 {[%emt 0:12:28]} 23. b4 {[%emt 0:02:39]} Qd8 {[%emt 0:01:08]} 24. d3 {[%emt 0:05:40]} exd3 {[%emt 0:06:25]} 25. Qxd3 {[%emt 0:00:37]} a5 {[%emt 0:00:30]} (25... a6 $16) 26. bxa5 {[%emt 0:08:08]} (26. Rfd1 $1 $18 {b5 is the strong threat.} axb4 27. axb4) 26... Qxa5 {[%emt 0:00:30]} 27. Rfd1 {[%emt 0:01:23][%cal Oc4b5]} Rad8 {[%emt 0:00:18]} 28. Qc3 {[%emt 0:02:28]} Qa4 {[%emt 0:02:09]} 29. Re1 {[%emt 0:01:12]} h6 {[%emt 0:01:28]} 30. Re3 {[%emt 0:01:32]} Kh7 {[%emt 0:04:56]} 31. Rce1 {[%emt 0:01:29]} Qc2 {[%emt 0:01:19]} 32. Re8 {[%emt 0:05:04]} Rxe8 {[%emt 0:01:12]} 33. Rxe8 {[%emt 0:00:16]} Qf2 {[%emt 0:02:43] [#]} 34. Bc1 {[%emt 0:04:14] A strong pair of Bishops.} (34. Qe1 $1 $14 Qxe1+ 35. Rxe1) 34... Nf3 $1 $11 {[%emt 0:03:02]} 35. Qxf3 {[%emt 0:00:42] Really sharp!} Qxf3 {[%emt 0:00:02][%mdl 64] Remove Defender} 36. gxf3 {[%emt 0:00:05]} Rd1+ {[%emt 0:00:01]} 37. Kg2 {[%emt 0:00:07]} Rxc1 {[%emt 0:00:07][%mdl 4096] Endgame KRB-KRN} 38. Bg8+ {[%emt 0:00:59]} Kg6 {[%emt 0:00:27]} 39. Kg3 {[%emt 0:00:48]} Nd4 {[%emt 0:01:53] Against Re6+} 40. Rd8 {[%emt 0:00:29] Rd6+ would kill now.} Ne2+ {[%emt 0:00:21]} 41. Kh4 {[%emt 0:04:40][%cal Rd8d6]} Rc6 {[%emt 0:01:52] Prevents Rd6+.} 42. Bd5 {[%emt 0:06:39]} Rb6 {[%emt 0:02:02]} 43. Rd7 {[%emt 0:06:09]} Nxf4 {[%emt 0:00:36]} 44. Bxb7 $2 {[%emt 0:01:08] [#]} (44. Bg8 $15) 44... Kf6 $1 $19 {[%emt 0:06:24]} 45. Kg3 {[%emt 0:00:39]} g5 {[%emt 0:00:03]} 46. Kf2 {[%emt 0:01:21]} Nxh3+ {[%emt 0:00:18]} 47. Ke3 $2 {[%emt 0:01:52]} (47. Ke1 {keeps fighting.}) 47... Rb3+ {[%emt 0:01:22]} 48. Kd4 {[%emt 0:00:04]} Nf4 {[%emt 0:01:45] Hoping for ...Rd3+.} 49. Rd6+ {[%emt 0:04:14]} Kg7 {[%emt 0:00:02]} 50. Rd7+ {[%emt 0:02:44] [#]} Kg6 $1 {[%emt 0:02:03]} 51. Rd6+ {[%emt 0:00:15]} Kh5 {[%emt 0:01:27]} 52. Bc6 {[%emt 0:01:49]} Rxa3 {[%emt 0:00:03] And now ...Rd3+ would win.} 53. Be8+ {[%emt 0:00:08]} Kh4 {[%emt 0:00:03] Strongly threatening ...Rd3+.} 54. Rxh6+ {[%emt 0:00:03]} Kg3 {[%emt 0:00:04]} 55. Ke5 {[%emt 0:01:28]} Re3+ {[%emt 0:00:54]} ({Worse is} 55... Rxf3 56. Kxf5 Nh3+ 57. Kg6 $15) (55... Kxf3 $17 {Threatens to win with ...Ra5+.} 56. Kxf5 Ra5+ 57. Kf6 g4 58. Bc6+ Ke3) 56. Kxf5 $11 {[%emt 0:00:05] The position is equal.} Rxe8 {[%emt 0:00:03]} 57. Kxg5 {[%emt 0:00:09] KRN-KR} Rf8 {[%emt 0:04:37]} 58. Ra6 {[%emt 0:01:40]} Rh8 {[%emt 0:00:59] ( -> ...Rh5+)} 59. Kf5 {[%emt 0:00:42]} Re8 {[%emt 0:01:53]} 60. Ra7 {[%emt 0:00:31]} Ne2 {[%emt 0:00:12]} 61. Rd7 {[%emt 0:00:58]} Re3 {[%emt 0:00:55]} 62. Rd1 {[%emt 0:01:17]} Kxf3 {[%emt 0:00:39]} 63. Rf1+ {[%emt 0:00:15]} Kg2 {[%emt 0:00:04]} 64. Ra1 {[%emt 0:00:03]} Ng3+ {[%emt 0:00:04]} 65. Kf4 {[%emt 0:00:17]} Re4+ {[%emt 0:00:18]} 66. Kg5 {[%emt 0:00:02]} Nf1 {[%emt 0:03:01]} 67. Kf5 {[%emt 0:00:24]} Re8 {[%emt 0:00:03]} 68. Kf4 {[%emt 0:00:27]} Ng3 {[%emt 0:00:22]} 69. Ra2+ {[%emt 0:00:41]} Ne2+ {[%emt 0:00:10]} 70. Kg4 {[%emt 0:00:08]} Kf2 {[%emt 0:00:02]} 71. Ra3 {[%emt 0:00:20]} Rf8 {[%emt 0:00:05]} 72. Rb3 {[%emt 0:00:25]} Nd4 {[%emt 0:00:04]} 73. Ra3 {[%emt 0:00:20]} Rf7 {[%emt 0:01:00]} 74. Kg5 {[%emt 0:00:24]} Nf5 {[%emt 0:00:11]} 75. Ra6 {[%emt 0:01:03]} Nd4 {[%emt 0:00:15]} 76. Rf6+ {[%emt 0:00:06]} Nf3+ {[%emt 0:00:04]} 77. Kg6 {[%emt 0:00:37]} Ra7 {[%emt 0:00:02]} 78. Kf5 {[%emt 0:00:29]} Ra5+ {[%emt 0:00:39]} 79. Kf4 {[%emt 0:01:08]} Ra4+ {[%emt 0:00:27]} 80. Kf5 {[%emt 0:00:02]} Nd4+ {[%emt 0:00:07]} 81. Ke5+ {[%emt 0:00:52]} Ke3 {[%emt 0:00:03]} 82. Rf1 {[%emt 0:00:40]} Ra5+ {[%emt 0:00:31]} 83. Kd6 {[%emt 0:00:07]} Nf5+ {[%emt 0:00:11]} 84. Ke6 {[%emt 0:00:26]} Ke4 {[%emt 0:00:02]} 85. Re1+ {[%emt 0:00:10]} Ne3 {[%emt 0:00:02]} 86. Rh1 {[%emt 0:00:39]} Ra6+ {[%emt 0:00:07]} 87. Kd7 {[%emt 0:00:06]} Ke5 {[%emt 0:00:23]} 88. Re1 {[%emt 0:00:20]} Ra3 {[%emt 0:00:13]} 89. Rh1 {[%emt 0:00:43]} Nf5 {[%emt 0:00:14]} 90. Re1+ {[%emt 0:00:19]} Kd5 {[%emt 0:00:02]} 91. Rd1+ {[%emt 0:00:04]} Nd4 {[%emt 0:00:06]} 92. Ke7 {[%emt 0:00:13]} Rf3 {[%emt 0:00:13]} 93. Ke8 {[%emt 0:00:58]} Ke5 {[%emt 0:00:12]} 94. Ke7 {[%emt 0:01:16]} Rf4 {[%emt 0:00:18]} 95. Ra1 {[%emt 0:00:58]} Nc6+ {[%emt 0:01:09]} 96. Kd7 {[%emt 0:00:07]} Rf6 {[%emt 0:00:03]} 97. Re1+ {[%emt 0:00:59]} Kd5 {[%emt 0:00:05]} 98. Rd1+ {[%emt 0:00:03]} Nd4 {[%emt 0:00:04]} 99. Ke7 {[%emt 0:00:10]} Rf4 {[%emt 0:00:20]} 100. Rd2 {[%emt 0:01:30]} Ke5 {[%emt 0:00:34]} 101. Rd1 {[%emt 0:00:16]} Nf3 {[%emt 0:00:29]} 102. Ra1 {[%emt 0:00:24]} Rh4 {[%emt 0:00:20]} 103. Ra5+ {[%emt 0:00:09]} Ke4 {[%emt 0:00:03]} 104. Ra1 {[%emt 0:00:23]} Rh6 {[%emt 0:00:16]} 105. Kd7 {[%emt 0:00:42]} Nd4 {[%emt 0:00:08]} 106. Ke7 {[%emt 0:00:38]} Nc6+ {[%emt 0:00:11]} 107. Kd7 {[%emt 0:00:42]} Kd5 {[%emt 0:00:02][%cal Oc6a7]} 108. Rd1+ {[%emt 0:00:08]} Nd4 {[%emt 0:00:04]} 109. Ke7 {[%emt 0:00:10] Whites escaped into a draw.  Weighted Error Value: White=0.17 (very precise) /Black=0.15 (very precise)} 1/2-1/2

[Event "Prague Festival Open 2022"]
[Site "Prague"]
[Date "2022.06.13"]
[Round "5.8"]
[White "Petr, Martin"]
[Black "Neuman, Petr"]
[Result "1-0"]
[ECO "B07"]
[WhiteElo "2488"]
[BlackElo "2389"]
[Annotator "TA"]
[PlyCount "49"]
[EventDate "2022.06.10"]
[EventType "swiss"]
[EventCountry "CZE"]
[SourceTitle "playchess.com"]
[Source "ChessBase"]
[SourceQuality "1"]
[TimeControl "40/5400+30:1800+30"]

{[%evp 15,49,24,33,25,39,39,47,40,54,36,42,45,48,36,39,29,50,44,54,52,64,33,31,28,48,17,17,0,57,56,51,23,66,65,161,161]} 1. e4 {[%emt 0:00:05]} d6 {[%emt 0:03:40]} 2. d4 {[%emt 0:00:12]} Nf6 {[%emt 0:00:04]} 3. Nc3 {[%emt 0:00:04]} e5 {[%emt 0:00:03]} 4. dxe5 {[%emt 0:00:24]} dxe5 {[%emt 0:00:04]} 5. Qxd8+ {[%emt 0:00:09]} Kxd8 {[%emt 0:00:03]} 6. Bc4 {[%emt 0:00:09]} Be6 {[%emt 0:00:44]} 7. Bxe6 {[%emt 0:00:56]} fxe6 {[%emt 0:00:05]} 8. Bg5 {[%emt 0:04:01]} Bd6 {[%emt 0:00:10]} (8... a6 9. O-O-O+ Bd6 10. f4 Ke7 11. Nf3 Nc6 12. Rhe1 h6 13. Bh4 b5 14. Nd5+ Kf7 15. Bxf6 exd5 16. Bxe5 Bxe5 17. fxe5 dxe4 18. Rxe4 Rad8 19. e6+ Ke7 {1-0 (50) Petr,M (2459)-Neuman,P (2369) Prague 2019}) 9. O-O-O {[%emt 0:00:24] B07: Pirc Defence: Miscellaneous Systems.} Ke7 {[%emt 0:00:16]} 10. f3 {[%emt 0:02:12]} a6 {[%emt 0:02:19]} 11. Nge2 {[%emt 0:00:30] White is slightly better.} Nc6 {[%emt 0:01:05]} 12. Kb1 {[%emt 0:02:26]} h6 {[%emt 0:01:49]} 13. Be3 {[%emt 0:00:07] [#]} Nh5 $146 {[%emt 0:03:46]} ({Predecessor:} 13... Rhd8 14. Nc1 Bb4 15. N3e2 {½-½ (15) Ribeiro,F (2305)-Mellado Trivino,J (2430) Loures 1997}) 14. h4 {[%emt 0:04:43]} Rhf8 {[%emt 0:02:26]} 15. Rhf1 {[%emt 0:00:44]} b5 {[%emt 0:04:45]} 16. Nc1 {[%emt 0:11:09]} Nf4 {[%emt 0:01:45]} 17. Rf2 {[%emt 0:00:06]} Nd4 {[%emt 0:01:37]} 18. N3e2 {[%emt 0:06:49]} (18. Bxd4 exd4 19. N3e2 c5 $15) 18... Ndxe2 {[%emt 0:05:53]} 19. Nxe2 {[%emt 0:00:09]} g5 {[%emt 0:24:43]} 20. hxg5 {[%emt 0:05:52]} hxg5 {[%emt 0:02:03]} 21. Nc1 {[%emt 0:02:56][%cal Be2c1,Bc1b3,Bb3d2][%mdl 32]} Kd7 {[%emt 0:10:11]} (21... g4 $11) 22. Nb3 {[%emt 0:05:46][%cal Oc2c4]} a5 $1 {[%emt 0:00:50]} 23. g3 {[%emt 0:03:00]} a4 {[%emt 0:03:36]} 24. Nd2 {[%emt 0:10:41]} ({Much worse is} 24. gxf4 gxf4 25. Bxf4 (25. Nc5+ Kc6 $17) 25... Rxf4 26. Nc5+ Kc6 27. Nxe6 Rf7 $11) (24. Nc5+ Kc6 $11) 24... Nh5 {[%emt 0:00:32]} (24... Rh8 $1 $14) 25. Rh2 {[%emt 0:02:02] Weighted Error Value: White=0.08 (flawless) /Black=0.18 (very precise)} ({But not} 25. Bxg5 $6 Nxg3 26. a3 Rg8 $14) 1-0

[Event "Prague Festival Open 2022"]
[Site "Prague"]
[Date "2022.06.13"]
[Round "5.9"]
[White "Czerw, Dawid"]
[Black "Popovic, Dusan"]
[Result "1/2-1/2"]
[ECO "B52"]
[WhiteElo "2386"]
[BlackElo "2480"]
[Annotator "TA"]
[PlyCount "179"]
[EventDate "2022.06.10"]
[EventType "swiss"]
[EventCountry "CZE"]
[SourceTitle "playchess.com"]
[Source "ChessBase"]
[SourceQuality "1"]
[TimeControl "40/5400+30:1800+30"]

{[%evp 9,179,0,23,20,22,22,28,0,33,7,0,8,20,13,29,3,11,0,14,0,6,-13,-20,-14,-16,-22,-9,-83,-85,-93,-111,-100,-83,-93,-52,-47,-42,-57,-57,-57,-30,-57,-57,-53,-19,-29,-19,-57,-57,-57,-57,-57,-57,-57,-52,-82,-82,-82,-82,-82,-82,-89,-91,-94,0,-226,-226,-226,-226,-225,-219,-224,-219,-218,-218,-221,-210,-184,-137,-137,-121,-125,0,0,0,-2,-9,-32,-9,-125,0,-20,-10,-161,-69,-231,-48,-47,-55,-75,0,-45,0,-113,-117,-106,-156,-154,-150,-107,-84,-84,0,-142,-141,-227,-216,-193,-200,-238,-237,-235,-230,-366,-365,-363,-64,-72,0,-347,0,0,0,0,0,0,0,-9,0,0,0,0,0,0,0,0,0,0,0,0,0,0,0,0,0,0,0,0,0,0,0,0,0,0,0,0,0,0,0,0,0,0]} 1. e4 {[%emt 0:00:03]} c5 {[%emt 0:07:29]} 2. Nf3 {[%emt 0:00:06]} d6 {[%emt 0:00:18]} 3. Bb5+ {[%emt 0:00:05]} Bd7 {[%emt 0:00:30]} 4. c4 {[%emt 0:00:16]} Nf6 {[%emt 0:00:53]} 5. Nc3 {[%emt 0:00:28]} g6 {[%emt 0:00:13]} 6. d4 {[%emt 0:00:42] B52: Sicilian: Moscow Variation with 3...Bd7.} cxd4 {[%emt 0:00:07]} 7. Nxd4 {[%emt 0:00:05]} Bg7 {[%emt 0:00:29]} 8. O-O {[%emt 0:01:13] White has an edge.} O-O {[%emt 0:00:33]} 9. h3 {[%emt 0:01:04]} a6 {[%emt 0:02:39]} 10. Bxd7 {[%emt 0:00:56]} Qxd7 {[%emt 0:00:16]} 11. Be3 {[%emt 0:00:25]} Nc6 {[%emt 0:00:29]} 12. a4 {[%emt 0:00:33]} e6 {[%emt 0:02:48]} 13. Rc1 {[%emt 0:18:12]} Rfd8 {[%emt 0:04:28] [#]} 14. Nf3 $146 {[%emt 0:11:07]} ({Predecessor:} 14. b3 Rac8 15. Re1 d5 16. cxd5 exd5 17. Nxc6 bxc6 18. exd5 Nxd5 19. Nxd5 cxd5 20. Rxc8 Qxc8 {½-½ (42) Carlsen,M (2847)-So,W (2770) chess24.com INT 2021}) 14... Qc7 {[%emt 0:17:12]} 15. Re1 {[%emt 0:16:54]} Nd7 {[%emt 0:03:38]} 16. Bg5 {[%emt 0:18:01]} Re8 {[%emt 0:05:26]} 17. Bf4 {[%emt 0:04:20]} Nde5 {[%emt 0:02:19]} 18. Nxe5 {[%emt 0:01:36]} (18. b3 $1 $11 {remains equal.}) 18... dxe5 $17 {[%emt 0:02:54]} 19. Be3 {[%emt 0:01:38][%cal Oc3d5]} Red8 {[%emt 0:09:18] Inhibits Nd5.} 20. Qb3 {[%emt 0:00:40]} Nd4 {[%emt 0:01:04]} 21. Qa2 {[%emt 0:01:03]} Rac8 {[%emt 0:03:42]} 22. Ne2 {[%emt 0:05:03]} Bf8 {[%emt 0:02:04] White must now prevent ...Bb4.} 23. Nxd4 {[%emt 0:05:58]} exd4 {[%emt 0:00:43]} 24. Bd2 {[%emt 0:00:09]} d3 {[%emt 0:07:01]} 25. a5 {[%emt 0:02:21]} Bd6 {[%emt 0:12:39]} 26. b3 {[%emt 0:00:46]} Bf4 {[%emt 0:00:45]} 27. Rcd1 {[%emt 0:00:54]} Rd4 {[%emt 0:01:10]} 28. Bxf4 {[%emt 0:02:50]} Qxf4 {[%emt 0:00:05]} 29. Qd2 {[%emt 0:00:15]} Qd6 {[%emt 0:01:02]} 30. Re3 {[%emt 0:02:27][%cal Re3d3]} Rd8 {[%emt 0:00:18]} 31. e5 {[%emt 0:00:29]} Qc6 {[%emt 0:02:54]} 32. Qc3 {[%emt 0:01:53][%cal Re3d3]} d2 {[%emt 0:01:37]} 33. Qb4 {[%emt 0:01:01]} Qc7 {[%emt 0:03:45]} 34. Re2 {[%emt 0:00:25]} Qd7 {[%emt 0:00:49]} 35. Kf1 {[%emt 0:00:13]} Rd3 {[%emt 0:00:52]} 36. Re4 {[%emt 0:02:49] Against Qd4} Rxh3 {[%emt 0:04:43]} 37. Rxd2 $2 {[%emt 0:01:06]} (37. gxh3 $11 Qd3+ 38. Re2) 37... Rd3 $19 {[%emt 0:00:50]} (37... Qxd2 38. Qxd2 Rxd2 39. gxh3 $17) 38. Rxd3 {[%emt 0:00:31]} Qxd3+ {[%emt 0:00:06][%mdl 4096] Endgame KQR-KQR} 39. Re2 {[%emt 0:00:02]} Qb1+ $1 {[%emt 0:01:13]} 40. Re1 {[%emt 0:00:06]} Rd1 {[%emt 0:00:16]} 41. g3 {[%emt 0:05:21]} Rxe1+ {[%emt 0:03:31]} 42. Qxe1 {[%emt 0:00:02]} Qxb3 {[%emt 0:00:28] KQ-KQ} 43. Qe4 {[%emt 0:01:03]} Qd1+ {[%emt 0:13:00]} (43... Qb4 $19 44. Kg1 Kg7) 44. Kg2 $17 {[%emt 0:00:07]} Qd7 {[%emt 0:00:03] Hoping for ...Qc6.} 45. Kg1 {[%emt 0:01:51]} Qc6 {[%emt 0:01:16]} ({Black should try} 45... Kg7 $17 46. Qf3 h5 47. Qf6+ Kg8) 46. Qd4 $1 $11 {[%emt 0:02:05]} Qf3 {[%emt 0:01:24]} 47. Qd7 {[%emt 0:01:11]} Kg7 {[%emt 0:00:22]} 48. Qe7 {[%emt 0:01:11] Against Qa3} h6 {[%emt 0:00:32]} 49. Qd8 {[%emt 0:06:12]} (49. c5 $11 {was the only way to keep the balance.}) 49... g5 {[%emt 0:02:48]} (49... h5 $17 50. c5 h4 51. Qxh4 Qd1+ 52. Kh2 Qd2 53. Qf6+ Kg8) 50. Qe7 {[%emt 0:01:03]} Kg6 {[%emt 0:01:52]} 51. Qd7 $2 {[%emt 0:00:05]} (51. Qf8 $11 {and White stays safe.}) 51... Qe4 {[%emt 0:04:19]} (51... h5 $1 $19 {[%cal Rh5h4] aiming for ...h4.} 52. Qe7 h4 53. gxh4 Qg4+ 54. Kf1 Qxc4+ 55. Kg2 Qg4+ 56. Kf1 Qd1+ 57. Kg2 Qd5+ 58. Kg1 Qxe5 59. h5+ Kg7 60. h6+ Kxh6 61. Qxf7 Qf5) 52. c5 $2 {[%emt 0:08:30]} ({White should play} 52. Qe7 $1 $15 Qxe5 53. Qxb7) 52... Qf3 $2 {[%emt 0:01:35]} (52... Qxe5 53. Qxb7 Qe1+ 54. Kg2 $11) (52... Qe1+ $19 53. Kg2 Qxa5) 53. Qd8 $1 $15 {[%emt 0:01:58]} Kg7 {[%emt 0:00:45] Against Qg8+} 54. Qe7 {[%emt 0:00:38]} Kg6 {[%emt 0:02:45]} 55. Qd8 $1 {[%emt 0:00:15]} Kh5 {[%emt 0:03:01]} (55... Kf5 $5 {[%cal Rf5g4]} 56. Qf6+ Ke4 57. Qxh6 g4 $17) 56. Qd4 {[%emt 0:00:11]} (56. Qf8 $11) 56... Qd5 $17 {[%emt 0:00:16]} 57. Qb4 {[%emt 0:00:32][%cal Oc5c6]} Kg6 {[%emt 0:00:24]} (57... Qxe5 58. Qxb7 Kg6 59. Qxa6 Qe1+ 60. Kg2 Qe4+ 61. Kf1 $11) 58. Qb1+ {[%emt 0:00:17]} Kg7 {[%emt 0:00:40]} 59. Qb6 {[%emt 0:00:45]} Qd1+ {[%emt 0:00:39]} 60. Kg2 {[%emt 0:00:27] [#]} Qd5+ {[%emt 0:00:03]} (60... Qd7 $142 $1 61. Qd6 Qc6+ 62. Kg1 Qa4) 61. Kg1 $1 {[%emt 0:00:06] [#]} h5 $1 {[%emt 0:00:28]} 62. Qc7 {[%emt 0:00:43]} (62. c6 $17 bxc6 63. Qxa6) 62... h4 $19 {[%emt 0:00:23] ( -> ...h3)} 63. Qe7 {[%emt 0:01:06]} Qxe5 {[%emt 0:00:47]} 64. gxh4 {[%emt 0:00:43]} Qe1+ {[%emt 0:00:26]} 65. Kg2 {[%emt 0:00:15]} Qe4+ {[%emt 0:00:45]} ({Weaker is} 65... Qxa5 66. Qxg5+ Kh7 67. Qh5+ Kg8 68. Qg5+ Kf8 69. h5 $11) 66. f3 {[%emt 0:00:17]} (66. Kf1 $142 Qc4+ 67. Ke1 Qc1+ 68. Ke2) 66... Qe2+ {[%emt 0:00:18]} (66... Qxh4 67. Qxb7 g4 68. fxg4 $15) 67. Kg1 {[%emt 0:02:00]} Qe1+ $2 {[%emt 0:00:42]} ({Inferior is} 67... Qxf3 68. Qxg5+ Kh8 69. Qh6+ Kg8 70. Qg5+ Kf8 71. Qd8+ Kg7 72. Qg5+ Kh8 73. Qh6+ Kg8 74. Qg5+ Kh7 75. Qe7 $17) (67... Qe3+ $19 68. Kg2 gxh4 69. Qxb7 Qg5+ 70. Kf1 Qxc5 71. Qb2+ Kh7) 68. Kg2 $15 {[%emt 0:00:08]} Qe2+ $2 {[%emt 0:00:05][%mdl 8192]} ({Reject} 68... gxh4 69. Qg5+ Kf8 70. Qd8+ Kg7 71. Qg5+ Kh8 72. Qh5+ Kg8 73. Qg5+ Kh8 74. Qh5+ Kg8 75. Qg5+ Kf8 76. Qd8+ Kg7 77. Qg5+ $11) (68... Qd2+ $17 69. Kh3 gxh4 70. Qxb7 Qe1 71. Qb2+ e5 72. Qg2+ Kf6) 69. Kg1 $19 {[%emt 0:00:03]} Qxf3 $2 {[%emt 0:00:56]} (69... Qe3+ $19 70. Kg2 gxh4 71. Qxb7 Qg5+ 72. Kf1 Qc1+ 73. Kg2 Qxc5 74. Qb2+ Kg6 75. Qb1+ Qf5) 70. Qxg5+ $11 {[%emt 0:00:15] The position is equal.} Kh7 {[%emt 0:00:03] Threatens to win with ...f6.} 71. Qe7 $1 {[%emt 0:00:47]} Qd1+ {[%emt 0:00:41]} 72. Kh2 {[%emt 0:00:22]} Qf3 {[%emt 0:00:51]} 73. Kg1 {[%emt 0:00:08]} Qg4+ {[%emt 0:00:31]} 74. Kh2 {[%emt 0:00:33]} Qf4+ {[%emt 0:00:06]} 75. Kg1 {[%emt 0:00:11]} Qf5 {[%emt 0:00:29]} 76. Kh2 $1 {[%emt 0:00:39]} Qe5+ {[%emt 0:00:08]} 77. Kh3 {[%emt 0:00:51]} Qc3+ {[%emt 0:00:31]} 78. Kh2 {[%emt 0:00:23]} Qc2+ {[%emt 0:01:10]} 79. Kh3 {[%emt 0:00:17]} Qb3+ {[%emt 0:00:24]} 80. Kh2 {[%emt 0:00:18]} Qa2+ {[%emt 0:00:41]} 81. Kh3 {[%emt 0:00:09]} Qb3+ {[%emt 0:00:32]} 82. Kh2 {[%emt 0:00:06]} Qc2+ {[%emt 0:00:17]} 83. Kh3 {[%emt 0:00:12]} Qf5+ {[%emt 0:00:06]} 84. Kh2 {[%emt 0:00:10]} Qf2+ {[%emt 0:00:53]} 85. Kh3 {[%emt 0:00:17]} Qf3+ {[%emt 0:00:45]} 86. Kh2 {[%emt 0:01:12]} Kg8 {[%emt 0:00:32]} 87. Qg5+ {[%emt 0:00:19]} Kh8 {[%emt 0:00:09]} 88. Qh6+ {[%emt 0:00:09]} Kg8 {[%emt 0:00:04] Strongly threatening ...Qf2+.} 89. Qg5+ {[%emt 0:00:04]} Kh7 {[%emt 0:00:02] And now ...Qe2+ would win.} 90. Qe7 $1 {White happily takes the draw.  Weighted Error Value: White=0.27 (precise) /Black=0.22 (precise)} 1/2-1/2

[Event "Prague Festival Open 2022"]
[Site "Prague"]
[Date "2022.06.13"]
[Round "5.10"]
[White "Raja Harshit"]
[Black "Sokolovsky, Yahli"]
[Result "1-0"]
[ECO "C45"]
[WhiteElo "2479"]
[BlackElo "2369"]
[Annotator "TA"]
[PlyCount "41"]
[EventDate "2022.06.10"]
[EventType "swiss"]
[EventCountry "CZE"]
[SourceTitle "playchess.com"]
[Source "ChessBase"]
[SourceQuality "1"]
[TimeControl "40/5400+30:1800+30"]

{[%evp 9,41,33,0,1,14,-8,-3,-4,0,-23,16,38,16,30,37,16,64,14,399,412,408,409,389,399,668,653,2192,2325,2139,2010,29986,29987,29993,2285]} 1. e4 {[%emt 0:04:21]} e5 {[%emt 0:00:06]} 2. Nf3 {[%emt 0:00:10]} Nc6 {[%emt 0:00:05]} 3. d4 {[%emt 0:00:12]} exd4 {[%emt 0:00:12]} 4. Nxd4 {[%emt 0:00:07]} Qf6 {[%emt 0:05:11]} 5. Nf3 {[%emt 0:00:39]} Bb4+ {[%emt 0:01:13]} 6. c3 {[%emt 0:02:49] C45: Scotch Game.} Bc5 {[%emt 0:00:05]} 7. Bg5 {[%emt 0:03:32]} Qg6 {[%emt 0:03:30]} 8. Nbd2 {[%emt 0:06:31] The position is equal.} Nf6 {[%emt 0:07:04] [#]} 9. Be2 $146 {[%emt 0:06:10]} (9. Bd3 $5 {[%cal Re1g1]}) ({Predecessor:} 9. Bc4 O-O 10. O-O Nxe4 11. Nxe4 Qxe4 12. Bd5 Qg6 13. Re1 d6 14. b4 Bb6 15. b5 {0-1 (83) Tari,A (2487)-Salgado Lopez,I (2628) Caleta 2015}) 9... Nxe4 {[%emt 0:11:12]} 10. Nxe4 {[%emt 0:00:59]} Qxe4 {[%emt 0:00:20]} 11. O-O {[%emt 0:01:54] Re1 is the strong threat.} O-O {[%emt 0:02:35]} 12. b4 {[%emt 0:06:29][%mdl 1024] White has compensation.} Bb6 {[%emt 0:13:23]} (12... Bd6 $11 {might be stronger.}) 13. Re1 {[%emt 0:12:07]} (13. Bd3 $14 Qg4 14. Re1) 13... d6 $2 {[%emt 0:16:45][%mdl 8192] Loses the game.} (13... Ne5 $11) 14. Bd3 $18 {[%emt 0:05:39]} Qg4 {[%emt 0:00:27][%cal Oc6e5]} 15. Re4 {[%emt 0:01:04] Against Ne5} Qd7 {[%emt 0:00:19] [#]} 16. Rh4 $1 {[%emt 0:00:45]} f5 $2 {[%emt 0:09:45]} (16... h6 17. Qd2 d5 18. Bf6) (16... g6 17. Qd2 f6 18. Bc4+ d5 19. Bxd5+ (19. Qxd5+ Qxd5 20. Bxd5+ Kh8 $14) 19... Kh8) 17. Bc4+ {[%emt 0:00:40]} Kh8 {[%emt 0:00:07] [#]} 18. Ne5 $1 {[%emt 0:02:34][%cal Re5g6][%mdl 512]} Qe8 {[%emt 0:00:52] [#] Prevents Ng6+.} 19. Nf7+ $1 {[%emt 0:03:13][%mdl 512]} Rxf7 {[%emt 0:00:10]} (19... Kg8 20. Nxd6+) 20. Qh5 {[%emt 0:00:05][%csl Gh4][%cal Rh5h7][%mdl 64] Pin, Double Attack} h6 {[%emt 0:03:46]} 21. Bxf7 {[%emt 0:01:02] Weighted Error Value: White=0.08 (flawless) /Black=1.03} (21. Bxh6 $142 Bxf2+ 22. Kxf2 Qe2+ 23. Kxe2 Nd4+ 24. cxd4 Rf6 25. Qe8+ Kh7 26. Qg8+ Kg6 27. Qxg7#) 1-0